Cogmind - Beta 17.1 @@@ ROGUE MODE // 2026.09.02 @ 20:38:11 Player: lavinia Result: Destroyed by S-10 Pest with Light Assault Rifle Performance ------------- Evolutions (0) 0 Regions Visited (2) 400 Robots Destroyed (32) 160 Value Destroyed (814) 814 Prototype IDs (2) 40 Alien Tech Used (0) 0 Bonus (12) 12 TOTAL SCORE: 1426 Bonus ------- High Alert Combat Kills 12 Cogmind --------- Core Integrity 0/250 Matter 289/300 Energy 250/250 System Corruption 0% Temperature Cool (0) Movement Rolling (80) Location -10/Mines Parts ------- > --- POWER (1) -------- Ion Engine > --- PROPULSION (2) --- Wheel Wheel > --- UTILITY (2) ------ Sensor Array Terrain Scanner > --- WEAPON (2) ------- Light Assault Rifle Mining Claw > --- INVENTORY (5) ---- Heat Sink Small Storage Unit Structural Scanner Visual Processing Unit Light Assault Rifle Peak State ------------ > --- POWER ------------ Light Ion Engine > --- PROPULSION ------- Wheel Wheel > --- UTILITY ---------- Small Storage Unit Improved Terrain Scanner > --- WEAPON ----------- EM Pulse Gun Assault Rifle > --- INVENTORY -------- (None) [Rating: 9] Favorites ----------- Power Ion Engine Engine Ion Engine Propulsion Wheel Wheel Wheel Utility Terrain Scanner Device Terrain Scanner Storage Large Battery Weapon Light Assault Rifle Energy Gun Small Laser Ballistic Gun Light Assault Rifle Ballistic Cannon Light Cannon Launcher Grenade Launcher Slashing Weapon Mining Claw Build | -11 -10 -10 ------- Run | Yrd Mat Min Slots Evolved . | . . . Power . | . . . Propulsion . | . . . Utility . | . . . Weapon . | . . . Parts Attached 24 | 7 17 . Power 3 | 1 2 . Engine 3 | 1 2 . Core . | . . . Reactor . | . . . Propulsion 4 | 2 2 . Treads . | . . . Leg . | . . . Wheel 4 | 2 2 . Hover . | . . . Flight . | . . . Utility 7 | 2 5 . Device 4 | 1 3 . Storage 3 | 1 2 . Processor . | . . . Hackware . | . . . Protection . | . . . Artifact . | . . . Weapon 10 | 2 8 . Energy Gun 2 | 1 1 . Energy Cannon . | . . . Ballistic Gun 5 | 1 4 . Ballistic Cannon 1 | . 1 . Launcher 1 | . 1 . Special Weapon . | . . . Impact Weapon . | . . . Slashing Weapon 1 | . 1 . Piercing Weapon . | . . . Special Melee Weapon . | . . . Unidentified Prototypes . | . . . Parts Lost 5 | . 5 . Power 2 | . 2 . Propulsion 1 | . 1 . Utility 1 | . 1 . Weapon 1 | . 1 . Highest Loss Streak 2 | . 2 . To Critical Strikes . | . . . Average Backups 2 | . 2 5 Power . | . . . Propulsion . | . . . Utility 1 | . 2 4 Weapon . | . . 1 Tool/Special . | . . . Unused Backups 4 | . 1 3 Power . | . . . Propulsion . | . . . Utility 4 | . 1 3 Weapon . | . . . Tool/Special . | . . . Average Slot Usage (%) 90 | . 90 100 Engine 12 | . 12 14 Wheel 25 | . 25 28 Device 17 | . 17 28 Storage 6 | . 6 . Energy Gun 3 | . 3 . Ballistic Gun 17 | . 18 14 Ballistic Cannon 1 | . 1 . Slashing Weapon 2 | . 2 14 Peak Build Rating 9 | 9 9 7 Average Rating 6 | 5 6 7 On Entrance 5 | . 9 7 Avg Prop Armor Cover (%) . | . . . Naked Turns . | . . . Heaviest Build 15 | 13 15 . Greatest Support 20 | 20 20 . Greatest Overweight (x) 1 | 1 1 . Average Overweight (x) . | . . . Largest Inventory Capacity 8 | 8 8 5 Average Capacity 5 | 7 5 5 Most Carried 5 | 1 5 5 Average Carried 2 | . 2 5 Final Capacity 8 | 8 5 5 Final Carried 5 | . 5 5 Class Distribution -------------------- 79% | Mutant 20% | Scavenger-Mutant Dominant Class ---------------- Mutant | -10/Materials Mutant | -10/Mines Resources | -11 -10 -10 ----------- Run | Yrd Mat Min Matter Collected 787 | 288 499 . Remotely 134 | . 134 . Salvage Created 986 | 127 859 . Parts 61 | 4 57 . Haulers Intercepted . | . . . Recyclers Shooed . | . . . Parts Field Recycled . | . . . Retrieved Matter . | . . . Parts Self-Destructed . | . . . Prevented . | . . . Parts Restored . | . . . Kills | -11 -10 -10 ------- Run | Yrd Mat Min Combat Hostiles Destroyed 25 | . 25 . Melee 1 | . 1 . Guns 13 | . 13 . Cannons 4 | . 4 . AOE 7 | . 7 . Classes Destroyed 7 | 2 5 . Worker 2 | . 2 . Builder 1 | . 1 . Tunneler 1 | 1 . . Recycler 2 | 1 1 . Watcher 1 | . 1 . Swarmer 6 | . 6 . Grunt 19 | . 19 . Best Kill Streak 8 | 2 8 . Combat Bots Only 7 | . 7 . Max Kills in Single Turn 2 | 1 2 . Gunslinging 1 | . 1 . Exploded 2 | . 2 . Melee 1 | . 1 . Uniques/NPCs Destroyed . | . . . Combat | -11 -10 -10 -------- Run | Yrd Mat Min Hostile Shots Fired 119 | . 117 2 Missed 36 | . 36 . Hits 83 | . 81 2 Projectile 83 | . 81 2 Critical Strikes 1 | . 1 . Damage Taken 977 | . 960 17 Core 257 | . 247 10 Absorbed by Shields . | . . . Regen/Repaired (Parts) 82 | . 82 . Core Remaining (%) 100 | 100 . . Volleys Fired 80 | 6 73 1 Largest 2 | 2 2 1 Hottest 60 | 60 60 20 Shots Fired 135 | 12 122 1 Gun 110 | 12 97 1 Cannon 17 | . 17 . Launcher 8 | . 8 . Special . | . . . Kinetic 104 | 6 97 1 Thermal 12 | . 12 . Explosive 8 | . 8 . Electromagnetic 11 | 6 5 . Robot Hit Streak 6 | 6 6 . Robot Miss Streak 4 | 2 4 1 Penetration Max . | . . . Secondary Targets 2 | . 2 . Max Gunslinging Chain 1 | . 1 . Shots Hit Robots 80 | 8 72 . Core Hits 51 | 3 48 . Critical Kills . | . . . Critical Parts Destroyed . | . . . Critical Strikes . | . . . Melee Attacks 7 | . 7 . Impact . | . . . Slashing 7 | . 7 . Piercing . | . . . Sneak Attacks . | . . . Combat Hostiles . | . . . Follow-up Attacks . | . . . Damage Inflicted 1552 | 97 1455 . Guns 690 | 97 593 . Cannons 190 | . 190 . Explosions 600 | . 600 . Melee 72 | . 72 . Ramming . | . . . Kinetic 716 | 35 681 . Thermal 155 | . 155 . Explosive 502 | . 502 . Electromagnetic 107 | 62 45 . Impact . | . . . Slashing 72 | . 72 . Piercing . | . . . Highest Corruption . | . . . Average Corruption . | . . . Corruption Purged . | . . . Corruption Blocked . | . . . Overload Shots . | . . . Overflow Damage . | . . . Projectiles . | . . . Explosions . | . . . Melee . | . . . Knockbacks 2 | . 2 . Impact . | . . . Kinetic 2 | . 2 . Secondary . | . . . Self-Inflicted Damage 91 | . 91 . Shots 2 | . 2 . Rammed . | . . . Targets Rammed . | . . . Kicked . | . . . Crushed . | . . . Highest Temperature 52 | . 52 . Average Temperature 15 | . 15 . Received Heat Transfer 414 | . 414 . Siege Activations . | . . . Martial Activations . | . . . Shielding Activations . | . . . Robots Disrupted . | . . . Combat Hostiles . | . . . Robots Corrupted . | . . . Combat Hostiles . | . . . Parts Fried 2 | 2 . . Impact Corruptions . | . . . Robots Melted . | . . . Combat Hostiles . | . . . Parts Melted . | . . . Heat Transferred 225 | . 225 . Parts Sabotaged . | . . . Parts Stolen . | . . . Parts Stripped . | . . . Power Chain Reactions 1 | . 1 . Alert | -11 -10 -10 ------- Run | Yrd Mat Min Maximum Alert Level 2 | . 2 . Low Security (%) 35 | 100 29 100 Level 1 51 | . 56 . Level 2 13 | . 14 . Level 3 . | . . . Level 4 . | . . . Level 5 . | . . . High Security . | . . . Max Security . | . . . Peak Influence 446 | 10 446 136 Initial 136 | . . 136 Average 247 | 1 271 136 Influence Increases 862 | 10 852 . Destroy 0b10 Robot/C 500 | . 500 . Destroy 0b10 Robot/NC 35 | 10 25 . Destroy Leader 112 | . 112 . Successful Hack 25 | . 25 . Disable Machine 60 | . 60 . Destroy Structure 70 | . 70 . Lose Combat Pursuer 60 | . 60 . Influence Decreases 726 | 10 501 215 Entered New Map 215 | . . 215 Time Decay 461 | 10 451 . Lost Part 50 | . 50 . Squads Dispatched 7 | . 7 . Investigation 6 | . 6 . Extermination . | . . . Reinforcement 1 | . 1 . Assault . | . . . Garrison . | . . . Intercept . | . . . Searches Triggered . | . . . Construction Impeded . | . . . Haulers Reinforced . | . . . Active Scanning Responses . | . . . Cargo Convoy Interrupts . | . . . Stealth | -11 -10 -10 --------- Run | Yrd Mat Min Distress Signals 1 | . 1 . Communications Jammed . | . . . Distress Signals . | . . . Times Spotted 44 | . 41 3 Peak Tracking Total 6 | . 6 . Tactical Retreats 2 | . 2 . Traps | -11 -10 -10 ------- Run | Yrd Mat Min Traps Triggered 2 | . 2 . Indirectly . | . . . Trap Hack Attempts . | . . . Triggered . | . . . Disarmed . | . . . Reprogrammed . | . . . Reused . | . . . Traps Extracted . | . . . Installed . | . . . Triggered . | . . . Machines | -11 -10 -10 ---------- Run | Yrd Mat Min Machines Disabled 4 | . 4 . Max in Single Turn 1 | . 1 . Machines Repaired . | . . . Machines Dismantled . | . . . Machines Sabotaged . | . . . Overloaded Fab Kills . | . . . Hacking | -11 -10 -10 --------- Run | Yrd Mat Min Machines Accessed 10 | . 10 . Terminals 7 | . 7 . Fabricators . | . . . Repair Stations 1 | . 1 . Recycling Units 2 | . 2 . Scanalyzers . | . . . Garrison Access . | . . . Total Hacks 44 | . 44 . Successful 24 | . 24 . Failed 20 | . 20 . Catastrophic 4 | . 4 . Database Lockouts . | . . . Manual 8 | . 8 . Terminals 27 | . 27 . Fabricators . | . . . Repair Stations 4 | . 4 . Recycling Units 13 | . 13 . Scanalyzers . | . . . Garrison Access . | . . . Terminal Hacks 12 | . 12 . Record 1 | . 1 . Prototype ID Bank 1 | . 1 . Branch Access Points 1 | . 1 . Terminal Index 1 | . 1 . Recycling Unit Index 1 | . 1 . Alert Level 1 | . 1 . Locate Traps 1 | . 1 . Dispatch Records 1 | . 1 . Maintenance Status 1 | . 1 . Transport Status 1 | . 1 . Zone Layout 2 | . 2 . Fabricator Hacks . | . . . Repair Station Hacks 4 | . 4 . Scan Component 2 | . 2 . Repair 2 | . 2 . Recycling Unit Hacks 8 | . 8 . Recycle Component 5 | . 5 . Process 2 | . 2 . Report Inventory 1 | . 1 . Scanalyzer . | . . . Garrison Access Hacks . | . . . Unauthorized Hacks . | . . . Terminals . | . . . Fabricators . | . . . Repair Stations . | . . . Recycling Units . | . . . Scanalyzers . | . . . Garrison Access . | . . . Data Cores Recovered . | . . . Used . | . . . Hacking Detections 10 | . 10 . Full Trace Events 9 | . 9 . Feedback Events . | . . . Feedback Blocked . | . . . Robot Schematics Acquired . | . . . Robots Built . | . . . Authchips . | . . . Time . | . . . Total Robot Build Rating . | . . . Part Schematics Acquired . | . . . Parts Built . | . . . Authchips . | . . . Time . | . . . Total Part Build Rating . | . . . Part Studies Acquired . | . . . Parts Repaired 2 | . 2 . Time 52 | . 52 . Parts Recycled 5 | . 5 . Recycled Matter 173 | . 173 . Retrieved Matter . | . . . Retrieved Components . | . . . Parts Scanalyzed . | . . . Part Schematics Acquired . | . . . Parts Damaged . | . . . Bothacking | -11 -10 -10 ------------ Run | Yrd Mat Min Used RIF Installer . | . . . Robots Hacked . | . . . Non-combat . | . . . Combat . | . . . Robot Hacks Applied . | . . . Relay Couplers Released . | . . . Fabnet Peak Effective % . | . . . Robots Rewired . | . . . Allies Hacked . | . . . Hacks Repelled . | . . . Allies | -11 -10 -10 -------- Run | Yrd Mat Min Total Allies . | . . . Largest Group . | . . . Highest-Rated Group . | . . . Highest-Rated Ally . | . . . Total Orders . | . . . Ally Attacks . | . . . Total Damage . | . . . Kills . | . . . Allies Corrupted . | . . . Allies Melted . | . . . Intel | -11 -10 -10 ------- Run | Yrd Mat Min Active Infowar (turns) 961 | 38 922 1 Sensors 459 | . 458 1 Terrain 961 | 38 922 1 Robot Analysis Total . | . . . Derelict Logs Recovered . | . . . Drone Launches . | . . . Drone Recoveries . | . . . Exploration | -11 -10 -10 ------------- Run | Yrd Mat Min Turns Passed 1323 | 115 1207 1 Spaces Moved 1104 | 105 999 . Core 4 | 4 . . Treads . | . . . Legs . | . . . Wheels 1100 | 101 999 . Hover . | . . . Flight . | . . . Fastest Speed 50 | 50 80 . Average Speed 80 | 79 80 . Slowest Speed 100 | 100 95 . Overloaded Moves . | . . . Propulsion Burnouts . | . . . Robots Hopped . | . . . Potential Cave-ins . | . . . Cave-ins Triggered . | . . . Exploration Rate (%) 33 | 4 94 3 Regions Visited 2 Branch Regions 1 Pre-discovered Areas . | . . . Known Exits Taken 1 | . 1 . Unknown Exits Taken 1 | 1 . . Scrap Searched . | . . . Spaces Dug . | . . . Terrain Destroyed 66 | . 66 . Melee . | . . . Projectile . | . . . AOE 66 | . 66 . Terrain Rammed . | . . . Walls Destroyed . | . . . Machines Disabled . | . . . Actions | -11 -10 -10 --------- Run | Yrd Mat Min Total 1407 | 124 1282 1 Wait 139 | . 139 . Move 1102 | 104 998 . Hop . | . . . Pick Up 29 | 7 22 . Fast Attach 4 | . 4 . Attach 28 | 7 21 . Detach 11 | . 11 . Swap . | . . . Drop 7 | . 7 . Fire 80 | 6 73 1 Melee 7 | . 7 . Ram . | . . . Kick . | . . . Crush . | . . . Escape Stasis . | . . . Rewire . | . . . Trap . | . . . Miscellaneous . | . . . Route ------- -11/Scrapyard -10/Materials (discovered 6 exits: [*Mat x3] / *Min x2 / [*Sub]) -10/Mines History --------- Turn | Location | Event 11 | -11/Scrapyard | Discovered new exit (range 15) 116 | -11/Scrapyard | Entered Materials 208 | -10/Materials | Discovered new exit (range 7) 506 | -10/Materials | Destroyed 7 combat bots 529 | -10/Materials | Core integrity fell below 50% 535 | -10/Materials | Discovered new exit (range 9) 587 | -10/Materials | Identified exit to Mines 587 | -10/Materials | Discovered new exit (range 9) 773 | -10/Materials | Build established: Mutant 821 | -10/Materials | Core integrity fell below 20% 911 | -10/Materials | Repaired Wheel 934 | -10/Materials | Discovered new exit (range 13) 1081 | -10/Materials | Discovered new exit (range 14) 1286 | -10/Materials | Repaired Ion Engine 1323 | -10/Materials | Entered Mines 1324 | -10/Mines | Destroyed by S-10 Pest with Light Assault Rifle Last Messages --------------- 01190_ K-01 Serf collects debris. 01195_ K-01 Serf cleans the Processing Tank. 01197_ K-01 Serf collects debris. 01216_ K-01 Serf cleans the Processing Tank. 01260_ Connecting with Repair Station... >>Scan(Ion Engine) Scanning Ion Engine... Ready to Repair: Ion Engine Rating: 1 Time: 26 >>Repair Repairing Ion Engine... ETC: 26 01286_ Repair station completes Ion Engine repairs. 01286_ Acquired Ion Engine. LOCATION=MINES GOAL=ESCAPE Map ----- +----------------------------------------------------+ | ??????????????????????????????? | | ??????????????????????????????? | | ??????????????????????????????? | | ??????????????????????????????? | | ??????????????????????????????? | | ??????????????????????????????? | | ??????????????????????????????? | | ??????????????????????????????? | | ??????????????????????????????? | | ??????????????????????????????? | | ??????????????????????????????? | | ??????????????????????????????? | | ??????????????????????????????? | | ??????????????????????????????? | | ??????????????????????????????? | | ??????????????????????????????? | | ??????????????????????????????? | | ??????????????????????????????? | | ??????????????????????????????? | | ??????????????????????????????? | | ??????????????????????????????? | | ??#########???????????????????? | | ??# ######??????????????? | | ??# ## ????????? | | ??# ????????????? | | ??# @ #???????????????????? | | ??#s #???????????????????? | | ??# #???????????????????? | | ??# ss #???????????????????? | | ??#########???????????????????? | | ??????????????????????????????? | | ??????????????????????????????? | | ??????????????????????????????? | | ??????????????????????????????? | | ??????????????????????????????? | | ??????????????????????????????? | | ??????????????????????????????? | | ??????????????????????????????? | | ??????????????????????????????? | | ??????????????????????????????? | | ??????????????????????????????? | | ??????????????????????????????? | | ??????????????????????????????? | | ??????????????????????????????? | | ??????????????????????????????? | | ??????????????????????????????? | | | | | | | | | +----------------------------------------------------+ Best States ------------- Heat Dissipation 25 Energy Generation 10 Energy Capacity 450 Matter Stores 300 Matter Capacity 300 Sight Range 16 Robot Scan Range 14 Terrain Scan Range 16 Terrain Scan Density 10 Evasion (%) 44 Item Schematics ----------------- None Robot Schematics ------------------ None Fabricated ------------ Nothing Repaired ---------- Wheel | 15% | -10/Materials Ion Engine | 20% | -10/Materials Studied --------- None Alien Tech Used ----------------- None Achievements -------------- DATA ERROR: Steam Global Achievement% Organ Harvest Use The Force Challenges ------------ None Game ------ Seed PlasmaDeepVibroblade Manual? 0 Play Time 00:45:23 Cumulative 12.3 hours Start 2026.08.25 @ 15:21:23 End 2026.09.02 @ 20:38:11 Sessions 5 Manual Loads 0 Difficulty Rogue Special Mode None Game No. 22 Rogue 22 Adventurer 0 Explorer 0 Win Type - Total 0 Types 0/0/0/0/0/0/0/0/0/0 Lore% 8 Gallery% 9 Achievement% 7 Wizard Run 0 Options --------- Layout 1 ASCII 0 Keyboard 0 Movement Mouse Keybinds 0 Fullscreen 1 Font 24/Smallcaps Map View 50x35 Zoom Use 0% Tactical HUD 1 Map Filters NONE Filters NONE Steam 1 RUN: 9c3731ca-f808-4af4-82cf-4c4af6f91263